Cogmind - Beta 16 @@@ ROGUE MODE // 2025.11.25 @ 09:57:36 Player: ChromeKnight Result: Self-destructed Performance ------------- Evolutions (8) 4000 Regions Visited (23) 4600 Robots Destroyed (247) 1235 Value Destroyed (10810) 10810 Prototype IDs (32) 640 Alien Tech Used (2) 400 Bonus (6330) 6330 TOTAL SCORE: 28015 Bonus ------- High Alert Combat Kills 841 Follower Combat Kills 1634 Entered Garrisons 800 Used RIF Installer 3000 Met Zhirov 300 Friendly Fire -245 Cogmind --------- Core Integrity 323/1450 Matter 187/300 Energy 100/100 System Corruption 19% Temperature Cool (0) Movement Core (50) Location -2/Research Parts ------- > --- POWER (2) -------- (None) > --- PROPULSION (7) --- (None) > --- UTILITY (11) ----- Improved Armor Integrity Analyzer Relay Coupler [NC] (17) Relay Coupler [Grunt] (30) > --- WEAPON (3) ------- (None) > --- INVENTORY (5) ---- Experimental Coolant Injector Relay Coupler [NC] (35) Relay Coupler [NC] (29) Relay Coupler [Sentry] (29) Advanced Remote Datajack Peak State ------------ > --- POWER ------------ Quantum-Antimatter Reactor > --- PROPULSION ------- Flying CIT-XBT Exoskeleton > --- UTILITY ---------- Armored Scrap Engine Advanced Cryofiber Web Advanced Cooling System Medium Storage Unit Advanced Energy Well Advanced Signal Interpreter Improved Remote Force Field Relay Coupler [NC] Relay Coupler [Hunter] > --- WEAPON ----------- Mini Smartbomb Launcher Laser Quantum Construct/G Force Lance > --- INVENTORY -------- Experimental Coolant Injector Improved Matter Compressor Advanced Sensor Array Advanced Sensor Array Relay Coupler [Swarmer] Improved Remote Datajack [Rating: 124] Favorites ----------- Power Constructs Engine Ion Engine Power Core Light Nuclear Core Reactor Constructs Propulsion Armored Wheel Treads Light Treads Leg Aluminum Leg Wheel Armored Wheel Hover Unit Cooled Airjet Flight Unit Constructs Utility Huge Storage Unit Device Improved Heat Sink Storage Huge Storage Unit Processor Improved Signal Interpreter Hackware Relay Coupler [NC] Protection Core Shielding Weapon Improved Light Cannon Energy Gun Constructs Ballistic Gun Gauss Rifle Ballistic Cannon Improved Light Cannon Launcher Mini Smartbomb Launcher Special Weapon Remote Datajack Slashing Weapon Katana Piercing Weapon Force Lance Special Melee Weapon Improved Datajack Build | -11 -10 -10 -9 -9 -8 -8 -8 -8 -7 -7 -7 -5 -5 -5 -5 -4 -4 -4 -4 -3 -3 -3 -2 ------- Run | Yrd Mat Min Mat Min Mat Gar Mat Gar Fac Sto Rec Fac Was Fac Gar Fac Upp Upp Zhi Pro Res Gar Res Slots Evolved 16 | . . . 2 . 2 . . . 2 . . 4 . . . 2 . . . . 2 . 2 Power 1 | . . . . . . . . . 1 . . . . . . . . . . . . . . Propulsion 5 | . . . 1 . 1 . . . . . . . . . . 1 . . . . 1 . 1 Utility 9 | . . . 1 . 1 . . . 1 . . 3 . . . 1 . . . . 1 . 1 Weapon 1 | . . . . . . . . . . . . 1 . . . . . . . . . . . Parts Attached 165 | 6 9 2 13 2 12 19 18 4 13 4 4 3 1 4 6 12 3 . 4 1 8 13 4 Power 12 | 1 . . 2 . . 4 1 1 1 . . . . . . . . . 1 1 . . . Engine 4 | 1 . . 2 . . 1 . . . . . . . . . . . . . . . . . Core 6 | . . . . . . 3 1 1 1 . . . . . . . . . . . . . . Reactor 2 | . . . . . . . . . . . . . . . . . . . 1 1 . . . Propulsion 44 | 2 3 . 5 1 3 10 9 1 7 2 1 . . . . . . . . . . . . Treads 9 | 2 1 . 2 . . 4 . . . . . . . . . . . . . . . . . Leg 14 | . . . . . . 5 8 1 . . . . . . . . . . . . . . . Wheel 8 | . 2 . 2 1 2 1 . . . . . . . . . . . . . . . . . Hover 7 | . . . . . . . . . 4 2 1 . . . . . . . . . . . . Flight 6 | . . . 1 . 1 . 1 . 3 . . . . . . . . . . . . . . Utility 72 | 1 3 1 1 . 6 2 4 1 5 1 2 2 1 3 5 9 3 . 3 . 6 10 3 Device 22 | . 1 1 . . 3 . 1 . 2 . 1 1 . 1 2 . 2 . . . 2 5 . Storage 8 | 1 1 . . . . . . . 2 . . . . . . . . . 2 . 1 . 1 Processor 10 | . 1 . 1 . 1 . 2 . . . . . . . . 2 1 . . . 1 . 1 Hackware 24 | . . . . . . . 1 1 1 . 1 . 1 1 3 7 . . . . 2 5 1 Protection 8 | . . . . . 2 2 . . . 1 . 1 . 1 . . . . 1 . . . . Artifact . | . . . . . . . . . . . . . . . . . . . . . . . . Weapon 37 | 2 3 1 5 1 3 3 4 1 . 1 1 1 . 1 1 3 . . . . 2 3 1 Energy Gun 7 | 2 1 . 1 . 1 1 1 . . . . . . . . . . . . . . . . Energy Cannon . | . . . . . . . . . . . . . . . . . . . . . . . . Ballistic Gun 5 | . . . 1 . . 1 2 . . . . . . 1 . . . . . . . . . Ballistic Cannon 8 | . 2 1 2 1 1 . . . . . 1 . . . . . . . . . . . . Launcher 4 | . . . 1 . 1 . . 1 . . . . . . . . . . . . . 1 . Special Weapon 10 | . . . . . . . . . . 1 . 1 . . 1 3 . . . . 1 2 1 Impact Weapon . | . . . . . . . . . . . . . . . . . . . . . . . . Slashing Weapon 1 | . . . . . . 1 . . . . . . . . . . . . . . . . . Piercing Weapon 1 | . . . . . . . . . . . . . . . . . . . . . 1 . . Special Melee Weapon 1 | . . . . . . . 1 . . . . . . . . . . . . . . . . Unidentified Prototypes 15 | . . 1 3 . 1 . . . 1 . 3 . . 1 . . . . 4 . 1 . . Corrupted Parts 1 | . 1 . . . . . . . . . . . . . . . . . . . . . . System Corruption 2 | . 2 . . . . . . . . . . . . . . . . . . . . . . Parts Lost 71 | . 2 . . 1 6 13 4 2 . 2 . . . 1 1 6 . 8 . 1 4 4 16 Power 8 | . . . . . . 1 . 1 . 1 . . . . . 1 . 1 . 1 . . 2 Propulsion 15 | . 1 . . 1 1 7 1 . . . . . . . . . . . . . . 1 3 Utility 30 | . . . . . 3 2 2 . . . . . . 1 1 3 . 3 . . 3 3 9 Weapon 18 | . 1 . . . 2 3 1 1 . 1 . . . . . 2 . 4 . . 1 . 2 Highest Loss Streak 14 | . 1 . . 1 2 5 3 1 . 2 . . . 1 1 2 . 3 . 1 3 3 14 To Critical Strikes 2 | . . . . . . . . . . . . . . . . . . . . . . . 2 Average Backups 15 | . 6 16 21 24 24 24 24 24 13 14 12 9 9 12 13 11 7 8 10 11 9 9 9 Power . | . . . . 1 1 2 1 . . . . . . . . . . . . . . . . Propulsion 3 | . 1 5 7 7 8 7 7 8 1 3 3 . . . . . . . . . . . . Utility 7 | . 1 4 6 10 10 12 12 10 8 8 7 6 7 9 10 8 4 5 7 8 6 7 6 Weapon 2 | . 3 6 6 5 4 1 1 2 1 1 1 1 1 1 1 . . . . . . . . Tool/Special . | . . . . . . . . . . . . . . . . . . . . . . . . Unused Backups 46 | . . . 5 . 3 7 . 1 7 4 6 . . . 4 . . . . . . 2 7 Power 2 | . . . . . 1 1 . . . . . . . . . . . . . . . . . Propulsion 12 | . . . 1 . 1 2 . . 4 . 4 . . . . . . . . . . . . Utility 24 | . . . . . 1 4 . 1 3 3 1 . . . 3 . . . . . . 2 6 Weapon 6 | . . . 4 . . . . . . . 1 . . . 1 . . . . . . . . Tool/Special 2 | . . . . . . . . . . 1 . . . . . . . . . . . . 1 Average Slot Usage (%) 79 | . 97 100 95 99 90 96 94 99 87 94 61 56 64 59 60 58 56 52 33 43 48 60 56 Engine 4 | . 14 14 11 11 8 2 . . . . 1 5 5 5 3 . . . . . . . . Core 3 | . . . . . . 6 9 9 9 11 5 . . . 1 4 4 4 . . . . . Treads 5 | . 22 14 11 11 1 6 . . . . . . . . . . . . . . . . . Leg 6 | . . . . . . 22 31 36 1 . 2 . . . 2 3 . . . . . 3 . Wheel 5 | . 5 14 21 21 31 4 . . . . . . . . . . . 1 . . . . . Hover 2 | . . . . . . . . . 16 29 9 5 5 4 1 1 5 3 3 5 2 . . Device 10 | . 10 14 11 11 11 9 6 . 14 13 8 15 17 12 14 13 14 11 10 10 11 11 7 Storage 8 | . 14 14 11 11 9 9 9 9 7 7 7 5 5 5 5 5 5 5 5 10 9 9 7 Processor 6 | . . . 7 11 9 9 10 18 12 7 7 5 5 5 2 7 9 8 5 5 7 5 6 Hackware 4 | . . . . . . . . 9 3 7 6 5 5 8 8 9 10 9 5 5 6 11 16 Protection 2 | . . . . . 2 8 7 . . 1 . . 5 5 5 1 . . . . . . . Energy Gun 4 | . 19 . . . 2 11 9 9 . . 1 5 5 . . . . . . . . . . Ballistic Gun 1 | . . . . . . 1 2 5 . . 1 . . 4 1 . . . . . . 1 2 Ballistic Cannon 6 | . 8 28 21 22 14 1 . . . . . . . . 3 4 . . . . . . . Slashing Weapon 1 | . . . . . . 3 5 . 6 7 2 . . . . . . . . . . . . Peak Build Rating 124 | 6 14 20 25 24 32 32 44 45 53 55 58 72 72 78 97 108 104 96 79 87 104 124 112 Average Rating 49 | 4 9 14 20 23 28 29 35 44 46 51 47 67 69 70 88 99 95 86 66 80 89 109 98 On Entrance 54 | . 6 14 15 24 24 30 32 44 43 45 49 53 72 69 76 95 89 95 61 79 79 104 103 Avg Prop Armor Cover (%) 9 | . 10 10 9 9 8 9 1 . . . . . . . . . . . 27 . . . . Naked Turns . | . . . . . . . . . . . . . . . . . . . . . . . . Heaviest Build 105 | 13 94 94 98 98 105 99 93 93 29 41 34 40 40 47 63 62 53 47 43 49 40 61 60 Greatest Support 127 | 40 40 12 24 24 46 60 72 72 33 41 42 40 40 41 77 62 62 103 55 55 55 127 46 Greatest Overweight (x) 12 | . 7 7 7 8 4 9 2 1 1 . 2 1 . 1 1 . . . 12 . . 1 1 Average Overweight (x) 1 | . 2 7 3 4 2 2 1 1 . . . . . . . . . . 3 . . . . Largest Inventory Capacity 25 | 8 25 25 25 25 25 25 25 25 25 15 15 15 15 15 15 15 15 15 15 15 15 10 10 Average Capacity 18 | 6 15 25 25 25 25 25 25 25 13 15 15 15 15 15 15 15 15 15 15 15 12 10 9 Most Carried 25 | 1 15 17 25 25 25 25 25 25 24 15 15 11 10 14 15 15 10 9 12 12 12 10 10 Average Carried 15 | . 6 16 21 24 24 24 24 24 12 14 12 8 9 12 13 11 7 8 10 11 9 9 9 Final Capacity 25 | 8 25 25 25 25 25 25 25 25 15 15 15 15 15 15 15 15 15 15 15 15 10 10 5 Final Carried 25 | 1 15 16 24 24 25 25 24 25 15 15 10 10 9 14 15 10 8 9 11 11 7 10 5 Scrap Engine Consumption 168 | . . . . . . . . . . . 35 1 4 8 31 22 3 6 5 3 14 13 23 Constructs Created 6 | . . . . . . . . . . . 3 . . . . . . . 1 . . 1 1 Constructs Modified 59 | . . . . . . . . . . . 5 1 . 5 17 6 3 3 3 . 3 9 4 Class Distribution -------------------- 39% | Mutant 17% | Bothacker-Mutant 12% | Scavenger-Mutant 10% | Construct 8% | Bothacker-Construct 4% | Botlord-Construct Dominant Class ---------------- Mutant | -10/Materials Mutant | -10/Mines Mutant | -9/Materials Mutant | -9/Mines Scientist-Mutant | -8/Materials Scavenger-Mutant | -8/Garrison Bothacker-Mutant | -8/Materials Bothacker-Mutant | -8/Garrison Bothacker-Scout | -7/Factory Bothacker-Mutant | -7/Storage Bothacker-Mutant | -7/Recycling Construct | -5/Factory Construct | -5/Waste Construct | -5/Factory Botlord-Construct | -5/Garrison Bothacker-Construct | -4/Factory Bothacker-Construct | -4/Upper Caves Bothacker-Construct | -4/Upper Caves Mutant | -4/Zhirov Mutant | -3/Proximity Caves Mutant | -3/Research Bothacker-Mutant | -3/Garrison Botlord-Mutant | -2/Research Resources | -11 -10 -10 -9 -9 -8 -8 -8 -8 -7 -7 -7 -5 -5 -5 -5 -4 -4 -4 -4 -3 -3 -3 -2 ----------- Run | Yrd Mat Min Mat Min Mat Gar Mat Gar Fac Sto Rec Fac Was Fac Gar Fac Upp Upp Zhi Pro Res Gar Res Matter Collected 6710 | 248 198 41 888 208 712 385 243 249 194 66 84 . . 310 765 999 144 157 . 96 12 413 298 Remotely . | . . . . . . . . . . . . . . . . . . . . . . . . Salvage Created 8171 | . 646 . 938 378 1173 1223 289 247 158 182 252 . . 216 664 656 93 342 . . . 395 319 Parts 478 | . 46 . 69 24 60 52 26 25 6 8 7 . . 21 30 52 11 20 . . . 10 11 Haulers Intercepted 8 | . 2 . 4 . 2 . . . . . . . . . . . . . . . . . . Recyclers Shooed 9 | . 1 . . 1 3 . . . . . 1 . . . . 3 . . . . . . . Parts Field Recycled . | . . . . . . . . . . . . . . . . . . . . . . . . Retrieved Matter . | . . . . . . . . . . . . . . . . . . . . . . . . Parts Self-Destructed 25 | . . . . . . . . . . . . . . . . . 8 17 . . . . . Prevented . | . . . . . . . . . . . . . . . . . . . . . . . . Parts Restored . | . . . . . . . . . . . . . . . . . . . . . . . . Kills | -11 -10 -10 -9 -9 -8 -8 -8 -8 -7 -7 -7 -5 -5 -5 -5 -4 -4 -4 -4 -3 -3 -3 -2 ------- Run | Yrd Mat Min Mat Min Mat Gar Mat Gar Fac Sto Rec Fac Was Fac Gar Fac Upp Upp Zhi Pro Res Gar Res Combat Hostiles Destroyed 187 | . 13 . 26 6 23 32 6 10 . 3 2 . . 4 17 11 6 11 . . . 10 7 Melee 9 | . . . . . . . 1 . . 3 2 . . . . . . . . . . 3 . Guns 47 | . 12 . . . . 19 1 6 . . . . . . 5 . . . . . . 2 2 Cannons 77 | . . . 22 6 17 7 . . . . . . . . 4 10 1 10 . . . . . AOE 47 | . . . 4 . 6 3 4 4 . . . . . 4 6 1 5 1 . . . 5 4 Classes Destroyed 19 | . 6 . 5 . 1 2 1 2 . . 2 . . . . . . . . . . . . Worker 11 | . 2 . 2 . 2 . 2 . . . . . . 2 . 1 . . . . . . . Builder 10 | . 1 . 2 2 1 . 1 . 1 . . . . 1 . 1 . . . . . . . Tunneler 6 | . . . 1 2 . . 1 . . . . . . 2 . . . . . . . . . Hauler 8 | . 2 . 4 . 2 . . . . . . . . . . . . . . . . . . Recycler 9 | . . . 1 . 5 . . . 2 . . . . 1 . . . . . . . . . Operator 4 | . . . 2 . 2 . . . . . . . . . . . . . . . . . . Watcher 7 | . 2 . 3 . 1 . . . . . . . . . . 1 . . . . . . . Swarmer 47 | . 3 . 4 . 3 6 . 3 . . . . . 4 5 1 5 9 . . . . 4 Cutter 3 | . . . . . . 3 . . . . . . . . . . . . . . . . . Saboteur 5 | . . . . . . . . 2 . . . . . . . . . . . . . 3 . Grunt 84 | . 10 . 14 9 14 17 2 2 . 2 . . . . 11 1 . . . . . 2 . Brawler 4 | . . . . . 1 . . . . . . . . 1 1 1 . . . . . . . Duelist 3 | . . . 1 . . 1 1 . . . . . . . . . . . . . . . . Protector 1 | . . . . . . . 1 . . . . . . . . . . . . . . . . Sentry 23 | . . . 7 . 5 3 2 . . 1 1 . . . . . . . . . . 2 2 Hunter 7 | . . . . . . 2 . . . . . . . . . 1 . 2 . . . 2 . Programmer 13 | . . . . . . . . 3 . . . . . . . 7 1 . . . . 1 1 Scientist 2 | . . . . . . . . . . . 2 . . . . . . . . . . . . Scrapper 1 | . . . . . . . . . . . 1 . . . . . . . . . . . . Thug 1 | . . . . . . . . . . . 1 . . . . . . . . . . . . Best Kill Streak 11 | . 3 . 8 3 11 8 4 3 1 2 2 . . 5 5 3 5 5 . . . 3 5 Combat Bots Only 8 | . 3 . 6 3 6 8 4 3 . 2 1 . . 4 5 3 5 5 . . . 3 5 Max Kills in Single Turn 4 | . 1 . 3 4 3 3 2 2 1 1 1 . . 3 2 1 3 1 . . . 2 4 Gunslinging 1 | . . . . . . 1 . . . . . . . . . . . . . . . . . Exploded 4 | . . . 2 . 2 3 2 2 . . . . . 2 2 1 3 1 . . . 2 4 Melee 1 | . . . . . . . 1 . . 1 1 . . . . . . . . . . 1 . Uniques/NPCs Destroyed . | . . . . . . . . . . . . . . . . . . . . . . . . Combat | -11 -10 -10 -9 -9 -8 -8 -8 -8 -7 -7 -7 -5 -5 -5 -5 -4 -4 -4 -4 -3 -3 -3 -2 -------- Run | Yrd Mat Min Mat Min Mat Gar Mat Gar Fac Sto Rec Fac Was Fac Gar Fac Upp Upp Zhi Pro Res Gar Res Hostile Shots Fired 1436 | . 54 . 83 5 76 171 39 40 7 78 14 . . 31 64 114 15 217 . 39 68 146 175 Missed 454 | . 10 . 24 . 24 39 12 14 1 29 3 . . 8 26 41 4 70 . 20 25 58 46 Hits 982 | . 44 . 59 5 52 132 27 26 6 49 11 . . 23 38 73 11 147 . 19 43 88 129 Melee 15 | . . . 2 . . 7 . . . . . . . . . 2 . . . 2 1 1 . Projectile 967 | . 44 . 57 5 52 125 27 26 6 49 11 . . 23 38 71 11 147 . 17 42 87 129 AOE 4 | . . . . . . . 4 . . . . . . . . . . . . . . . . Critical Strikes 43 | . 1 . 2 . 2 6 . . 1 1 1 . . 1 2 6 . 6 . 3 . 2 9 Part Disruptions 1 | . . . . . . . . 1 . . . . . . . . . . . . . . . Damage Taken 18010 | . 494 9 840 177 749 1915 825 397 97 407 206 . 5 918 802 1677 182 2175 . 450 840 1740 3105 Core 3216 | . 73 . 167 17 98 276 103 17 14 90 31 . . 204 92 191 33 388 . . 141 154 1127 Absorbed by Shields 267 | . . . . . . 62 . . . . . . . . . . . . . . . 205 . Redirected to Shielding 34 | . . . . . . 15 19 . . . . . . . . . . . . . . . . Regen/Repaired (Parts) 4050 | . . . 121 . . . . . . . 70 . . 250 519 773 163 369 257 . 501 771 256 Core Remaining (%) 62 | 100 . 70 . 54 . . . 10 . . 80 . . . 70 . . . . 46 . 70 . Volleys Fired 756 | . 60 . 95 17 79 93 26 25 . 1 5 . 4 17 76 88 6 55 . . 1 64 44 Largest 2 | . 2 . 2 2 2 2 2 2 . 1 1 . 1 1 1 1 1 1 . . 1 1 1 Hottest 122 | . 90 . 66 66 94 122 89 97 . 20 45 . 5 36 50 46 46 46 . . 7 80 80 Shots Fired 1092 | . 122 . 187 34 125 175 42 48 . 1 5 . 4 17 76 87 6 54 . . 1 64 44 Gun 476 | . 119 . . . 11 142 38 44 . . 5 . . 11 30 . . . . . . 48 28 Cannon 483 | . 3 . 184 34 103 29 . . . . . . . 4 31 52 2 34 . . . 7 . Launcher 45 | . . . 3 . 11 4 4 4 . . . . . 2 6 1 4 1 . . . 4 1 Special 88 | . . . . . . . . . . 1 . . 4 . 9 34 . 19 . . 1 5 15 Kinetic 515 | . 3 . 184 34 103 34 16 19 . . 5 . . 15 50 52 . . . . . . . Thermal 441 | . 107 . . . 11 137 22 25 . 1 . . . . . . 2 53 . . . 55 28 Explosive 45 | . . . 3 . 11 4 4 4 . . . . . 2 6 1 4 1 . . . 4 1 Electromagnetic 23 | . 12 . . . . . . . . . . . . . 11 . . . . . . . . Robot Hit Streak 33 | . 14 . 29 33 13 15 16 8 . . 1 . 5 6 12 5 3 9 . . 2 9 6 Robot Miss Streak 5 | . 5 . 3 2 3 2 3 2 . . 1 . . 4 4 4 1 4 . . . 4 5 Penetration Max 1 | . . . . . . . 1 1 . . 1 . . 1 . . . . . . . . . Secondary Targets 4 | . . . . . . 4 . . . . . . . . . . . . . . . . . Max Gunslinging Chain 1 | . . . . . . 1 . . . . . . . . . . . . . . . . . Shots Hit Robots 737 | . 82 . 118 21 90 121 36 28 4 13 16 . 4 7 41 55 4 33 . . 1 37 26 Core Hits 373 | . 33 1 47 13 63 54 21 15 1 4 5 . . 19 27 16 7 16 . . . 20 11 Critical Kills 2 | . . . . . . . . 1 . . . . . . . . . . . . . . 1 Critical Parts Destroyed . | . . . . . . . . . . . . . . . . . . . . . . . . Critical Strikes 31 | . 3 . 6 1 1 11 1 2 . 2 . . . . 2 . . . . . . 1 1 Burn 16 | . 3 . . . 1 11 . 1 . . . . . . . . . . . . . . . Meltdown 1 | . . . . . . . . . . . . . . . . . . . . . . . 1 Destroy 1 | . . . . . . . . 1 . . . . . . . . . . . . . . . Blast 9 | . . . 6 1 . . . . . . . . . . 2 . . . . . . . . Sever 3 | . . . . . . . 1 . . 2 . . . . . . . . . . . . . Impale 1 | . . . . . . . . . . . . . . . . . . . . . . 1 . Melee Attacks 83 | . . . . . . 6 9 2 16 20 14 . . . . 2 . . . . . 14 . Impact . | . . . . . . . . . . . . . . . . . . . . . . . . Slashing 56 | . . . . . . 6 7 . 15 20 8 . . . . . . . . . . . . Piercing 14 | . . . . . . . . . . . . . . . . . . . . . . 14 . Sneak Attacks 17 | . . . . . . . 4 . 4 . 9 . . . . . . . . . . . . Combat Hostiles . | . . . . . . . . . . . . . . . . . . . . . . . . Follow-up Attacks . | . . . . . . . . . . . . . . . . . . . . . . . . Damage Inflicted 22983 | . 1075 19 2802 663 2553 2311 1422 803 201 425 524 . . 1098 2519 1867 541 1124 . 22 . 2163 851 Guns 6300 | . 1053 . . . 152 1729 448 569 . . 90 . . 144 550 . . . . . . 999 566 Cannons 8951 | . 22 . 2493 502 1537 391 . . . . . . . 150 1057 1727 50 882 . . . 140 . Explosions 5654 | . . . 293 151 864 191 667 234 . . . . . 804 912 130 491 78 . . . 560 279 Melee 1807 | . . . . . . . 283 . 201 425 434 . . . . . . . . . . 464 . Ramming 107 | . . 19 16 10 . . 24 . . . . . . . . 10 . . . 22 . . 6 Kinetic 8791 | . 22 . 2493 502 1537 391 145 285 . . 90 . . 294 1305 1727 . . . . . . . Thermal 6348 | . 900 . . 151 152 1729 303 284 . . . . . 28 . . 50 1046 . . . 1139 566 Explosive 5475 | . . . 293 . 864 191 667 234 . . . . . 776 912 130 491 78 . . . 560 279 Electromagnetic 455 | . 153 . . . . . . . . . . . . . 302 . . . . . . . . Impact . | . . . . . . . . . . . . . . . . . . . . . . . . Slashing 1343 | . . . . . . . 283 . 201 425 434 . . . . . . . . . . . . Piercing 464 | . . . . . . . . . . . . . . . . . . . . . . 464 . Highest Corruption 17 | . 4 4 . . . . 3 5 . . . . 8 8 8 4 4 4 4 4 . 4 17 Average Corruption 4 | . 3 4 . . . . 2 4 . . . . 8 8 8 4 4 4 4 4 . 3 4 Corruption Purged 3 | . . . . . . . 3 . . . . . . . . . . . . . . . . Corruption Blocked . | . . . . . . . . . . . . . . . . . . . . . . . . Effects 175 | . 32 19 . . . . 2 7 . . . . 2 18 38 8 10 15 13 2 . 4 5 Message Errors 42 | . 8 5 . . . . 1 1 . . . . . 4 8 1 3 5 3 . . 1 2 Matter Fused 45 | . 9 5 . . . . 1 2 . . . . . 3 9 2 3 4 4 . . 1 2 Heat Flow Errors 18 | . 4 1 . . . . . 1 . . . . . 2 2 1 . . 4 2 . 1 . Energy Discharges 21 | . 2 3 . . . . . 1 . . . . . 2 5 2 2 3 . . . . 1 Parts Rejected 5 | . . . . . . . . . . . . . 1 3 . 1 . . . . . . . Parts Fused 2 | . 1 . . . . . . . . . . . . . 1 . . . . . . . . Data Loss (minor) 25 | . 4 3 . . . . . . . . . . 1 2 9 . 2 2 2 . . . . Data Loss (major) 8 | . 2 . . . . . . 1 . . . . . . 4 . . . . . . 1 . Misfires 3 | . 2 . . . . . . 1 . . . . . . . . . . . . . . . Alerts 4 | . . 2 . . . . . . . . . . . 2 . . . . . . . . . Weapon Failures 2 | . . . . . . . . . . . . . . . . 1 . 1 . . . . . Overload Shots . | . . . . . . . . . . . . . . . . . . . . . . . . Overflow Damage 726 | . . . 22 20 40 7 46 . 67 . 24 . . 81 65 221 39 90 . . . 4 . Projectiles 476 | . . . 22 18 40 7 . . . . . . . 13 65 221 . 90 . . . . . Explosions 110 | . . . . 2 . . 1 . . . . . . 68 . . 39 . . . . . . Melee 140 | . . . . . . . 45 . 67 . 24 . . . . . . . . . . 4 . Knockbacks 67 | . . . 26 10 20 5 . . . . . . . . 1 5 . . . . . . . Impact . | . . . . . . . . . . . . . . . . . . . . . . . . Kinetic 59 | . . . 20 8 20 5 . . . . . . . . 1 5 . . . . . . . Secondary 8 | . . . 6 2 . . . . . . . . . . . . . . . . . . . Self-Inflicted Damage 319 | . . 9 8 110 . 14 . 8 . . . . . 132 . 5 19 . . 11 . . 3 Shots 7 | . . . . 2 . 1 . 1 . . . . . 2 . . 1 . . . . . . Rammed 15 | . . 3 3 2 . . . . . . . . . 1 . 2 . . . 1 . . 3 Targets Rammed 16 | . . 3 3 2 . . 1 . . . . . . 1 . 2 . . . 1 . . 3 Kicked 1 | . . . . . . . 1 . . . . . . . . . . . . . . . . Crushed . | . . . . . . . . . . . . . . . . . . . . . . . . Highest Temperature 266 | . 250 120 . 10 13 236 180 266 . 11 49 . . 249 218 126 . . 243 214 . 89 . Average Temperature 64 | . 91 69 . 10 5 66 68 45 . 11 22 . . 77 49 44 . . 104 103 . 65 . Received Heat Transfer 3132 | . 273 . 312 39 342 774 99 54 72 105 106 . . 54 360 174 . . . 63 96 110 99 Siege Activations . | . . . . . . . . . . . . . . . . . . . . . . . . Martial Activations . | . . . . . . . . . . . . . . . . . . . . . . . . Shielding Activations . | . . . . . . . . . . . . . . . . . . . . . . . . Robots Disrupted . | . . . . . . . . . . . . . . . . . . . . . . . . Combat Hostiles . | . . . . . . . . . . . . . . . . . . . . . . . . Robots Corrupted 2 | . . . . . . . . . . . . . . . 2 . . . . . . . . Combat Hostiles 2 | . . . . . . . . . . . . . . . 2 . . . . . . . . Parts Fried 1 | . . . . . . . . . . . . . . . 1 . . . . . . . . Impact Corruptions . | . . . . . . . . . . . . . . . . . . . . . . . . Robots Melted 5 | . 1 . . . . 3 . . . . . . . . . . . . . . . . 1 Combat Hostiles 5 | . 1 . . . . 3 . . . . . . . . . . . . . . . . 1 Parts Melted 22 | . 4 . . 1 . 15 . . . . 1 . . . 1 . . . . . . . . Heat Transferred 11837 | . 2504 . . 200 407 4588 666 629 . . . . . 50 . . 37 1295 . . . 943 518 Parts Sabotaged 3 | . . . . . . . . . . . . . . . . . . . . . . 3 . Parts Stolen . | . . . . . . . . . . . . . . . . . . . . . . . . Parts Stripped . | . . . . . . . . . . . . . . . . . . . . . . . . Power Chain Reactions . | . . . . . . . . . . . . . . . . . . . . . . . . Alert | -11 -10 -10 -9 -9 -8 -8 -8 -8 -7 -7 -7 -5 -5 -5 -5 -4 -4 -4 -4 -3 -3 -3 -2 ------- Run | Yrd Mat Min Mat Min Mat Gar Mat Gar Fac Sto Rec Fac Was Fac Gar Fac Upp Upp Zhi Pro Res Gar Res Maximum Alert Level 5 | . . . 1 . 1 5 3 3 1 . . . . 2 4 3 . . . . . 1 1 Low Security (%) 54 | 100 100 100 49 100 61 . . . . 100 100 100 100 56 . 59 . . . . 100 72 71 Level 1 13 | . . . 50 . 38 5 . 7 100 . . . . 40 5 . . . . . . 27 28 Level 2 12 | . . . . . . 16 73 58 . . . . . 2 30 19 . . . . . . . Level 3 13 | . . . . . . 40 26 33 . . . . . . 49 20 . . . . . . . Level 4 4 | . . . . . . 21 . . . . . . . . 15 . . . . . . . . Level 5 2 | . . . . . . 15 . . . . . . . . . . . . . . . . . High Security . | . . . . . . . . . . . . . . . . . . . . . . . . Max Security . | . . . . . . . . . . . . . . . . . . . . . . . . Peak Influence 1823 | . 146 12 359 176 367 1823 888 750 378 122 54 150 37 459 1356 745 . . . . 19 322 241 Initial 888 | . . 12 . 136 43 219 888 304 378 117 24 150 37 . 321 711 . . . . . 14 180 Average 352 | . 57 . 197 82 159 1047 597 628 317 93 5 128 15 143 863 324 . . . . . 136 151 Influence Increases 8638 | . 414 . 898 288 741 1734 428 556 41 117 134 158 . 673 1105 470 84 186 . 36 29 348 198 Destroy 0b10 Robot/C 4077 | . 260 . 560 120 460 780 200 340 . 60 40 . . 140 505 204 72 132 . . . 120 84 Destroy 0b10 Robot/NC 292 | . 35 . 75 20 65 . 40 . 15 . . . . 30 . 12 . . . . . . . Destroy Leader 620 | . 48 . 164 20 106 40 54 20 . 10 . . . 20 38 46 12 18 . . . 6 18 Allied During Kill 406 | . . . 7 22 . 41 51 44 . . 4 . . 13 133 64 . . . . . . 27 Successful Hack 114 | . 26 . 3 . 25 14 10 . . . . 8 . . 12 5 . . . . 11 . . Select Force Hacks 90 | . . . . . . . . . . . 90 . . . . . . . . . . . . Disable Machine 528 | . . . 30 90 . . 15 15 . 45 . . . 285 39 9 . . . . . . . Anti-Garrison Action 1203 | . . . . . . 800 . 100 . . . . . . 213 . . . . . . 90 . Destroy Structure 630 | . . . 14 16 55 44 28 37 11 2 . . . 110 153 58 . . . . . 78 24 Advance Influence 150 | . . . . . . . . . . . . 150 . . . . . . . . . . . Partial Spotted 30 | . . . . . . . . . 15 . . . . 15 . . . . . . . . . Lose Combat Pursuer 498 | . 45 . 45 . 30 15 30 . . . . . . 60 12 72 . 36 . 36 18 54 45 Influence Decreases 8638 | . 383 31 548 526 516 248 1783 304 502 312 198 50 108 214 208 1769 141 186 . 36 10 45 520 Entered New Map 3066 | . . 19 . 214 69 118 935 164 342 142 40 . 71 . 138 645 22 . . . . 5 142 Time Decay 3531 | . 363 12 508 302 387 . 428 . 150 150 158 50 20 174 . 334 119 146 . 30 10 . 190 Lost Part 534 | . 20 . . 10 60 130 40 20 . 20 . . . . 10 60 . 40 . 6 . 40 78 Lost Ally 657 | . . . 40 . . . 80 120 10 . . . 17 40 60 180 . . . . . . 110 Purge Threat 850 | . . . . . . . 300 . . . . . . . . 550 . . . . . . . Squads Dispatched 27 | . 1 . 5 . 2 . 2 . 1 3 . 1 . 1 . 6 . . . . 4 . 1 Investigation 4 | . 1 . 1 . . . . . . . . . . . . . . . . . 2 . . Extermination 5 | . . . . . . . . . . 1 . . . . . 2 . . . . 1 . 1 Reinforcement 11 | . . . 4 . 1 . 1 . . . . 1 . . . 3 . . . . 1 . . Assault 4 | . . . . . . . 1 . . 2 . . . . . 1 . . . . . . . Garrison 3 | . . . . . 1 . . . 1 . . . . 1 . . . . . . . . . Intercept . | . . . . . . . . . . . . . . . . . . . . . . . . Searches Triggered . | . . . . . . . . . . . . . . . . . . . . . . . . Construction Impeded 2 | . . . 2 . . . . . . . . . . . . . . . . . . . . Haulers Reinforced . | . . . . . . . . . . . . . . . . . . . . . . . . Active Scanning Responses . | . . . . . . . . . . . . . . . . . . . . . . . . Cargo Convoy Interrupts . | . . . . . . . . . . . . . . . . . . . . . . . . Alert ID Control Effect 8 | . . . . . . . . . . . . . . . 1 4 . . . . . . 3 Stealth | -11 -10 -10 -9 -9 -8 -8 -8 -8 -7 -7 -7 -5 -5 -5 -5 -4 -4 -4 -4 -3 -3 -3 -2 --------- Run | Yrd Mat Min Mat Min Mat Gar Mat Gar Fac Sto Rec Fac Was Fac Gar Fac Upp Upp Zhi Pro Res Gar Res Distress Signals 14 | . . . 6 . 1 . 3 . . . . . . . . 2 . . . . . . 2 Communications Jammed 1 | . . . . . . . . . . . . . . . . 1 . . . . . . . Distress Signals 1 | . . . . . . . . . . . . . . . . 1 . . . . . . . Times Spotted 366 | . 19 1 40 5 32 40 19 17 3 5 5 . 6 12 31 44 6 16 . 7 10 18 30 Peak Tracking Total 12 | . 3 1 6 3 7 6 6 4 3 3 2 2 4 5 4 8 5 5 . 5 6 6 12 Tactical Retreats 26 | . 3 . 3 . 2 1 2 . . . . . 1 1 1 5 . 1 . 1 1 3 1 Traps | -11 -10 -10 -9 -9 -8 -8 -8 -8 -7 -7 -7 -5 -5 -5 -5 -4 -4 -4 -4 -3 -3 -3 -2 ------- Run | Yrd Mat Min Mat Min Mat Gar Mat Gar Fac Sto Rec Fac Was Fac Gar Fac Upp Upp Zhi Pro Res Gar Res Traps Triggered 28 | . 2 . . . 3 6 . 4 2 1 . 1 . 2 2 . . . . . . 4 1 Indirectly . | . . . . . . . . . . . . . . . . . . . . . . . . Trap Hack Attempts . | . . . . . . . . . . . . . . . . . . . . . . . . Triggered . | . . . . . . . . . . . . . . . . . . . . . . . . Disarmed . | . . . . . . . . . . . . . . . . . . . . . . . . Reprogrammed . | . . . . . . . . . . . . . . . . . . . . . . . . Reused . | . . . . . . . . . . . . . . . . . . . . . . . . Traps Extracted . | . . . . . . . . . . . . . . . . . . . . . . . . Installed . | . . . . . . . . . . . . . . . . . . . . . . . . Triggered . | . . . . . . . . . . . . . . . . . . . . . . . . Machines | -11 -10 -10 -9 -9 -8 -8 -8 -8 -7 -7 -7 -5 -5 -5 -5 -4 -4 -4 -4 -3 -3 -3 -2 ---------- Run | Yrd Mat Min Mat Min Mat Gar Mat Gar Fac Sto Rec Fac Was Fac Gar Fac Upp Upp Zhi Pro Res Gar Res Machines Disabled 49 | . 1 . 2 6 . 4 1 3 . 3 . . . 19 6 1 . . . . . 3 . Max in Single Turn 6 | . 1 . 1 6 . 1 1 1 . 1 . . . 6 1 . . . . . . 1 . Garrison Relay 12 | . . . . . . 4 . 2 . . . . . . 3 . . . . . . 3 . Machines Repaired . | . . . . . . . . . . . . . . . . . . . . . . . . Machines Dismantled 3 | . . . . . . . . . . 2 . . . . 1 . . . . . . . . Machines Sabotaged . | . . . . . . . . . . . . . . . . . . . . . . . . Overloaded Fab Kills . | . . . . . . . . . . . . . . . . . . . . . . . . Hacking | -11 -10 -10 -9 -9 -8 -8 -8 -8 -7 -7 -7 -5 -5 -5 -5 -4 -4 -4 -4 -3 -3 -3 -2 --------- Run | Yrd Mat Min Mat Min Mat Gar Mat Gar Fac Sto Rec Fac Was Fac Gar Fac Upp Upp Zhi Pro Res Gar Res Machines Accessed 48 | . 6 . 4 . 7 3 4 . 2 4 5 1 . 3 1 1 . . 4 . 2 . 1 Terminals 27 | . 6 . 2 . 5 3 2 . 1 4 1 1 . . 1 1 . . . . . . . Fabricators 4 | . . . . . . . . . . . . . . 2 . . . . . . 1 . 1 Repair Stations 2 | . . . 1 . . . 1 . . . . . . . . . . . . . . . . Recycling Units 3 | . . . . . . . . . . . 3 . . . . . . . . . . . . Scanalyzers 3 | . . . 1 . 1 . . . 1 . . . . . . . . . . . . . . Garrison Access 4 | . . . . . 1 . 1 . . . . . . 1 . . . . . . 1 . . Total Hacks 110 | . 13 . 11 . 15 5 14 . 2 6 7 5 . 4 2 3 . . 17 . 5 . 1 Successful 69 | . 10 . 6 . 11 1 8 . . 2 5 1 . 4 1 1 . . 17 . 2 . . Failed 41 | . 3 . 5 . 4 4 6 . 2 4 2 4 . . 1 2 . . . . 3 . 1 Catastrophic 9 | . . . 1 . 1 1 1 . . 1 . 1 . . . 1 . . . . 2 . . Database Lockouts . | . . . . . . . . . . . . . . . . . . . . . . . . Manual 47 | . 11 . . . 8 . 11 . . 1 6 5 . . . 3 . . . . 2 . . Terminals 56 | . 13 . 4 . 10 5 6 . 1 6 1 5 . . 2 3 . . . . . . . Fabricators 6 | . . . . . . . . . . . . . . 3 . . . . . . 2 . 1 Repair Stations 5 | . . . 3 . . . 2 . . . . . . . . . . . . . . . . Recycling Units 4 | . . . . . . . . . . . 4 . . . . . . . . . . . . Scanalyzers 8 | . . . 4 . 3 . . . 1 . . . . . . . . . . . . . . Garrison Access 12 | . . . . . 2 . 6 . . . . . . 1 . . . . . . 3 . . Terminal Hacks 32 | . 3 . . . 2 1 2 . . 2 2 1 . . 1 1 . . 17 . . . . Record 5 | . . . . . . . . . . . . . . . . . . . 5 . . . . Part Schematic 4 | . . . . . . . . . . . . . . . . . . . 4 . . . . Robot Analysis 7 | . 2 . . . 1 . . . . . . . . . . . . . 4 . . . . Prototype ID Bank 4 | . . . . . . . . . . . . . . . . . . . 4 . . . . Open Door 1 | . . . . . . . . . . 1 . . . . . . . . . . . . . Branch Access Points 3 | . . . . . 1 . . . . . . 1 . . . 1 . . . . . . . Emergency Access Points 1 | . . . . . . . . . . . . . . . 1 . . . . . . . . Unreport Threat 2 | . . . . . . . 2 . . . . . . . . . . . . . . . . Zone Layout 2 | . 1 . . . . . . . . 1 . . . . . . . . . . . . . Garrison Registry 1 | . . . . . . 1 . . . . . . . . . . . . . . . . . Release Object 2 | . . . . . . . . . . . 2 . . . . . . . . . . . . Fabricator Hacks 3 | . . . . . . . . . . . . . . 3 . . . . . . . . . Network Status 1 | . . . . . . . . . . . . . . 1 . . . . . . . . . Build 2 | . . . . . . . . . . . . . . 2 . . . . . . . . . Repair Station Hacks 3 | . . . 2 . . . 1 . . . . . . . . . . . . . . . . Scan Component 2 | . . . 1 . . . 1 . . . . . . . . . . . . . . . . Repair 1 | . . . 1 . . . . . . . . . . . . . . . . . . . . Recycling Unit Hacks . | . . . . . . . . . . . . . . . . . . . . . . . . Scanalyzer 7 | . . . 4 . 3 . . . . . . . . . . . . . . . . . . Retrieve Study 7 | . . . 4 . 3 . . . . . . . . . . . . . . . . . . Garrison Access Hacks 4 | . . . . . 1 . 1 . . . . . . 1 . . . . . . 1 . . Unlock Access 4 | . . . . . 1 . 1 . . . . . . 1 . . . . . . 1 . . Unauthorized Hacks 19 | . 6 . . . 5 . 4 . . . 3 . . . . . . . . . 1 . . Terminals 13 | . 6 . . . 5 . 2 . . . . . . . . . . . . . . . . Skim 13 | . 6 . . . 5 . 2 . . . . . . . . . . . . . . . . Fabricators . | . . . . . . . . . . . . . . . . . . . . . . . . Repair Stations . | . . . . . . . . . . . . . . . . . . . . . . . . Recycling Units 3 | . . . . . . . . . . . 3 . . . . . . . . . . . . Tunnel 3 | . . . . . . . . . . . 3 . . . . . . . . . . . . Scanalyzers . | . . . . . . . . . . . . . . . . . . . . . . . . Garrison Access 3 | . . . . . . . 2 . . . . . . . . . . . . . 1 . . Restock 1 | . . . . . . . 1 . . . . . . . . . . . . . . . . Reprogram 2 | . . . . . . . 1 . . . . . . . . . . . . . 1 . . Data Cores Recovered 1 | . . . . . 1 . . . . . . . . . . . . . . . . . . Used . | . . . . . . . . . . . . . . . . . . . . . . . . Hacking Detections 28 | . 4 . 4 . 2 2 2 . 2 4 1 1 . 2 . 1 . . . . 2 . 1 Full Trace Events 6 | . 1 . 1 . . 2 . . . . . . . . . . . . . . 2 . . Feedback Events 1 | . . . . . . . . . . . . . . . . . . . . . 1 . . Hackware Fried 1 | . . . . . . . . . . . . . . . . . . . . . 1 . . Feedback Blocked . | . . . . . . . . . . . . . . . . . . . . . . . . Robot Schematics Acquired . | . . . . . . . . . . . . . . . . . . . . . . . . Robots Built 3 | . . . . . . . . . . . . . . 3 . . . . . . . . . Authchips . | . . . . . . . . . . . . . . . . . . . . . . . . Time 84 | . . . . . . . . . . . . . . 84 . . . . . . . . . Total Robot Build Rating 18 | . . . . . . . . . . . . . . 18 . . . . . . . . . Part Schematics Acquired 4 | . . . . . . . . . . . . . . . . . . . 4 . . . . Parts Built 2 | . . . . . . . . . . . . . . 2 . . . . . . . . . Authchips . | . . . . . . . . . . . . . . . . . . . . . . . . Time 117 | . . . . . . . . . . . . . . 117 . . . . . . . . . Total Part Build Rating 14 | . . . . . . . . . . . . . . 14 . . . . . . . . . Part Studies Acquired 7 | . . . 4 . 3 . . . . . . . . . . . . . . . . . . Parts Repaired 1 | . . . 1 . . . . . . . . . . . . . . . . . . . . Time 32 | . . . 32 . . . . . . . . . . . . . . . . . . . . Parts Recycled . | . . . . . . . . . . . . . . . . . . . . . . . . Recycled Matter . | . . . . . . . . . . . . . . . . . . . . . . . . Retrieved Matter . | . . . . . . . . . . . . . . . . . . . . . . . . Retrieved Components . | . . . . . . . . . . . . . . . . . . . . . . . . Parts Scanalyzed . | . . . . . . . . . . . . . . . . . . . . . . . . Part Schematics Acquired . | . . . . . . . . . . . . . . . . . . . . . . . . Parts Damaged . | . . . . . . . . . . . . . . . . . . . . . . . . Bothacking | -11 -10 -10 -9 -9 -8 -8 -8 -8 -7 -7 -7 -5 -5 -5 -5 -4 -4 -4 -4 -3 -3 -3 -2 ------------ Run | Yrd Mat Min Mat Min Mat Gar Mat Gar Fac Sto Rec Fac Was Fac Gar Fac Upp Upp Zhi Pro Res Gar Res Used RIF Installer 6 | . . . . . . 2 . 1 . . . . . . 2 . . . . . . 1 . Hotswap 1 | . . . . . . . . . . . . . . . . . . . . . . 1 . Threat Obfuscator 2 | . . . . . . . . . . . . . . . 2 . . . . . . . . Alert ID Control 1 | . . . . . . . . 1 . . . . . . . . . . . . . . . Program Shield 1 | . . . . . . 1 . . . . . . . . . . . . . . . . . Robots Hacked 47 | . . . . . . . 2 1 1 . 5 . 4 . 5 17 . . . . 1 3 8 Non-combat 15 | . . . . . . . . . 1 . 4 . . . . 8 . . . . 1 . 1 Combat 32 | . . . . . . . 2 1 . . 1 . 4 . 5 9 . . . . . 3 7 Robot Hacks Applied 53 | . . . . . . . 2 1 1 . 5 . 4 . 5 22 . . . . 1 3 9 hold_bot 1 | . . . . . . . . . . . . . . . . 1 . . . . . . . drop_inventory 4 | . . . . . . . . . . . . . . . . 2 . . . . 1 . 1 ignore_parts 4 | . . . . . . . . . . . 4 . . . . . . . . . . . . purge_threat 6 | . . . . . . . . . . . . . . . . 6 . . . . . . . mark_security 1 | . . . . . . . . . . . . . . . . 1 . . . . . . . ignore_targets 4 | . . . . . . . . . . . . . 4 . . . . . . . . . . overload_power 2 | . . . . . . . . . . . . . . . . 1 . . . . . . 1 amplify_resonance 3 | . . . . . . . . . . . . . . . . 2 . . . . . 1 . disable_weapons 1 | . . . . . . . . . . . . . . . 1 . . . . . . . . reboot_system 4 | . . . . . . . . . . . . . . . 1 1 . . . . . . 2 overwrite_iff 4 | . . . . . . . . . . . . . . . . 1 . . . . . . 3 formatsys_low 4 | . . . . . . . . . 1 . . . . . . 2 . . . . . . 1 formatsys_high 15 | . . . . . . . 2 1 . . 1 . . . 3 5 . . . . . 2 1 Relay Couplers Released 54 | . . . . . . 18 . 6 . . . . . . 12 . . . . . . 18 . Machine Destruction 51 | . . . . . . 18 . 6 . . . . . . 12 . . . . . . 15 . Programmers 3 | . . . . . . . . . . . . . . . . . . . . . . 3 . Attached 22 | . . . . . . . 1 1 1 . 1 . 1 . 3 7 . . . . 1 5 1 Fabnet Peak Effective % . | . . . . . . . . . . . . . . . . . . . . . . . . Robots Rewired 10 | . . . . . . 4 . 3 . . . . . . 3 . . . . . . . . Allies Hacked 2 | . . . . . . . . . . . . . . . . 2 . . . . . . . Hacks Repelled . | . . . . . . . . . . . . . . . . . . . . . . . . Allies | -11 -10 -10 -9 -9 -8 -8 -8 -8 -7 -7 -7 -5 -5 -5 -5 -4 -4 -4 -4 -3 -3 -3 -2 -------- Run | Yrd Mat Min Mat Min Mat Gar Mat Gar Fac Sto Rec Fac Was Fac Gar Fac Upp Upp Zhi Pro Res Gar Res Total Allies 46 | . . 3 . 3 . 4 2 4 1 2 1 . . 3 8 8 . . . . . 2 5 Largest Group 8 | . . 3 2 3 . 4 4 5 1 2 2 1 1 3 8 7 . . . . . 2 3 Highest-Rated Group 377 | . . 74 43 40 . 84 84 97 23 62 63 32 32 90 377 305 . . . . . 94 158 Highest-Rated Ally 95 | . . 31 31 16 . 21 21 25 23 31 32 32 32 30 95 62 . . . . . 64 64 Total Orders 5 | . . . . . . 2 . . 1 . . . . . . 2 . . . . . . . STAY 2 | . . . . . . 1 . . . . . . . . . 1 . . . . . . . FOLLOW 1 | . . . . . . 1 . . . . . . . . . . . . . . . . . AID 2 | . . . . . . . . . 1 . . . . . . 1 . . . . . . . Ally Attacks 307 | . . . 10 8 . 14 27 32 . . 29 . 9 13 63 64 . . . . . . 38 Total Damage 7638 | . . . 128 89 . 250 457 456 . . 438 . 379 424 2586 1608 . . . . . . 823 Kills 56 | . . . 2 . . 7 8 7 . . 3 . . 3 12 11 . . . . . . 3 Allies Corrupted 4 | . . . . . . . . . . . . . . 1 . 1 . . . . . . 2 Allies Melted . | . . . . . . . . . . . . . . . . . . . . . . . . Intel | -11 -10 -10 -9 -9 -8 -8 -8 -8 -7 -7 -7 -5 -5 -5 -5 -4 -4 -4 -4 -3 -3 -3 -2 ------- Run | Yrd Mat Min Mat Min Mat Gar Mat Gar Fac Sto Rec Fac Was Fac Gar Fac Upp Upp Zhi Pro Res Gar Res Active Infowar (turns) 5731 | . . 1 . . . . 319 739 305 259 286 101 82 331 896 692 384 302 . . 244 401 389 Optics 508 | . . . . . . . . . . . . . . . . 508 . . . . . . . Sensors 3015 | . . 1 . . . . . . 296 259 286 101 82 331 2 152 384 302 . . 244 186 389 Decoding 451 | . . . . . . . . . . . . . . . . . . . . . 232 219 . Machine Analysis 1248 | . . . . . . . 319 739 190 . . . . . . . . . . . . . . Jamming 1249 | . . . . . . . . . . . . . . . 894 355 . . . . . . . Robot Analysis Total 7 | . 2 . . . 1 . . . . . . . . . . . . . 4 . . . . Derelict Logs Recovered 5 | . . 1 . 2 . . . . . . . . . . . . 1 1 . . . . . Drone Launches . | . . . . . . . . . . . . . . . . . . . . . . . . Drone Recoveries . | . . . . . . . . . . . . . . . . . . . . . . . . Decoded 0b10 Intel 7 | . . . . . . . . . . . . . . . . . . . . . 7 . . Patrols 3 | . . . . . . . . . . . . . . . . . . . . . 3 . . Guards 4 | . . . . . . . . . . . . . . . . . . . . . 4 . . Exploration | -11 -10 -10 -9 -9 -8 -8 -8 -8 -7 -7 -7 -5 -5 -5 -5 -4 -4 -4 -4 -3 -3 -3 -2 ------------- Run | Yrd Mat Min Mat Min Mat Gar Mat Gar Fac Sto Rec Fac Was Fac Gar Fac Upp Upp Zhi Pro Res Gar Res Turns Passed 19553 | 68 2055 1037 1434 745 979 2492 1057 739 305 318 1748 110 82 554 1413 749 401 767 618 120 280 1074 408 Spaces Moved 10853 | 42 660 522 723 449 566 889 398 290 516 246 746 137 107 494 709 585 380 572 150 254 360 643 415 Core 82 | 7 . . . . . . . . . . . . . . . . . . 75 . . . . Treads 707 | 35 460 . . . . 103 . . . . . . . . 109 . . . . . . . . Legs 2683 | . . . . . . 533 398 290 . . 102 . . . 449 384 . 20 . . . 507 . Wheels 2877 | . 200 522 723 449 566 253 . . . . 3 . . . . . . 161 . . . . . Hover 3556 | . . . . . . . . . 334 246 641 137 107 434 151 201 380 391 75 254 205 . . Flight 948 | . . . . . . . . . 182 . . . . 60 . . . . . . 155 136 415 Fastest Speed 26 | 50 160 195 125 140 106 110 190 190 26 38 38 65 65 42 80 80 99 84 41 41 41 72 45 Average Speed 123 | 141 176 195 134 140 110 225 232 190 36 38 105 67 65 60 148 91 99 91 206 41 56 74 71 Slowest Speed 750 | 160 320 195 195 200 140 750 263 190 110 42 193 128 65 167 167 99 99 99 650 41 72 87 87 Overloaded Moves . | . . . . . . . . . . . . . . . . . . . . . . . . Propulsion Burnouts . | . . . . . . . . . . . . . . . . . . . . . . . . Robots Hopped 4 | . . . . . . . . . . . . . . . . . . . . . 3 . 1 Potential Cave-ins 7 | . . . . . . . . . . . . . . . . . . . . . . 7 . Cave-ins Triggered 1 | . . . . . . . 1 . . . . . . . . . . . . . . . . Teleports 1 | . . . . . . . . . . . . . . . . . . . . . 1 . . Exploration Rate (%) 50 | 5 81 97 72 86 42 70 47 50 13 45 96 5 90 14 65 13 62 68 60 51 16 50 10 Regions Visited 23 Branch Regions 8 Pre-discovered Areas 10 | . . 1 . . 2 . . . . . 3 . . . . . . 1 3 . . . . Known Exits Taken 16 | . 1 1 1 1 1 . 1 . 1 1 1 . . 1 . 1 1 1 1 1 1 . . Unknown Exits Taken 1 | 1 . . . . . . . . . . . . . . . . . . . . . . . Scrap Searched 9 | . . 1 . 1 . . . . . . . . . . . . 1 4 . 2 . . . Spaces Dug 36 | . . . 1 . . 12 2 . 11 2 . . . 2 . . . 1 . . . 5 . Terrain Destroyed 456 | . . . 8 20 65 43 27 29 11 2 . . . 60 67 28 21 3 . . . 59 13 Melee 18 | . . . . . . . 2 . 11 2 . . . . . . . . . . . 3 . Projectile 75 | . . . 6 1 6 . . . . . . . . 3 16 21 1 1 . . . 13 7 AOE 363 | . . . 2 19 59 43 25 29 . . . . . 57 51 7 20 2 . . . 43 6 Terrain Rammed . | . . . . . . . . . . . . . . . . . . . . . . . . Walls Destroyed . | . . . . . . . . . . . . . . . . . . . . . . . . Machines Disabled . | . . . . . . . . . . . . . . . . . . . . . . . . Actions | -11 -10 -10 -9 -9 -8 -8 -8 -8 -7 -7 -7 -5 -5 -5 -5 -4 -4 -4 -4 -3 -3 -3 -2 --------- Run | Yrd Mat Min Mat Min Mat Gar Mat Gar Fac Sto Rec Fac Was Fac Gar Fac Upp Upp Zhi Pro Res Gar Res Total 15800 | 48 1430 538 995 529 795 1194 479 430 616 395 1696 154 117 732 1002 720 398 732 456 269 430 1150 495 Wait 3397 | . 677 8 125 57 110 80 10 66 30 89 898 7 4 202 156 17 4 99 282 13 58 388 17 Move 10819 | 41 659 521 722 448 565 887 397 288 515 245 745 137 106 493 707 584 379 571 149 253 353 641 413 Hop 4 | . . . . . . . . . . . . . . . . . . . . . 3 . 1 Pick Up 151 | 1 18 2 16 2 10 14 3 4 14 5 4 4 . 6 15 5 2 4 3 1 5 13 . Fast Attach 78 | 6 5 . 5 . 14 12 3 1 5 1 5 1 1 4 . 2 . . 4 . 3 4 2 Attach 93 | . 4 1 5 1 4 6 4 2 10 1 2 4 1 4 6 8 4 2 1 1 7 9 6 Detach 27 | . 1 . 2 . 1 . 1 . . . 1 . . 3 2 2 1 . . . . 6 7 Swap 63 | . 1 2 9 1 2 7 12 6 3 8 . . . . 4 5 . . . . . 3 . Drop 140 | . 5 1 13 1 10 14 12 2 22 5 21 1 1 2 10 4 2 1 3 . . 8 2 Fire 756 | . 60 . 95 17 79 93 26 25 . 1 5 . 4 17 76 88 6 55 . . 1 64 44 Melee 83 | . . . . . . 6 9 2 16 20 14 . . . . 2 . . . . . 14 . Ram 15 | . . 3 3 2 . . . . . . . . . 1 . 2 . . . 1 . . 3 Kick 1 | . . . . . . . 1 . . . . . . . . . . . . . . . . Crush . | . . . . . . . . . . . . . . . . . . . . . . . . Escape Stasis 54 | . . . . . . 29 . 15 . . . . . . 10 . . . . . . . . Rewire 91 | . . . . . . 46 1 19 1 . 1 . . . 8 1 . . 14 . . . . Trap . | . . . . . . . . . . . . . . . . . . . . . . . . Miscellaneous 28 | . . . . . . . . . . 20 . . . . 8 . . . . . . . . Route ------- -11/Scrapyard -10/Materials (discovered 6 exits: *Mat x3 / *Min x2 / [*Sub]) -10/Mines (discovered 4 exits: *Mat x2 / [*Exi] / [*Sub]) -9/Materials (discovered 5 exits: *Mat x3 / *Min x2) -9/Mines (discovered 2 exits: *Mat x2) -8/Materials (discovered 4 exits: *Fac x3 / Gar) -8/Garrison (discovered 4 exits: *Mat x4) -8/Materials (discovered 3 exits: *Fac x2 / Gar) -8/Garrison -7/Factory (discovered 3 exits: Fac / *Sto x2) -7/Storage (discovered 2 exits: Fac / *Rec) -7/Recycling -5/Factory (discovered 2 exits: Upp x2) -5/Waste -5/Factory (discovered 2 exits: *Upp / Gar) -5/Garrison (discovered 2 exits: *Fac x2) -4/Factory (discovered 5 exits: *Res / *Upp x2 / Ext x2) -4/Upper Caves -4/Upper Caves (discovered 2 exits: *Res / *Zhi) -4/Zhirov -3/Proximity Caves -3/Research -3/Garrison -2/Research History --------- Turn | Location | Event 5 | -11/Scrapyard | Discovered new exit (range 15) 69 | -11/Scrapyard | Entered Materials 311 | -10/Materials | Discovered new exit (range 9) 317 | -10/Materials | Build established: Mutant 683 | -10/Materials | Discovered new exit (range 14) 935 | -10/Materials | Discovered new exit (range 13) 1126 | -10/Materials | Discovered new exit (range 5) 1229 | -10/Materials | Discovered new exit (range 14) 1630 | -10/Materials | Identified exit to Materials 1630 | -10/Materials | Identified exit to Mines 1686 | -10/Materials | Learned 4 Recycling zone layouts 1731 | -10/Materials | Learned 2 Storage zone layouts 1791 | -10/Materials | Learned 2 Materials zone layouts 1921 | -10/Materials | Learned Recycling recycling unit intel 2124 | -10/Materials | Entered Mines 2251 | -10/Mines | Received a Rocket Launcher from a helpful Derelict 2251 | -10/Mines | Learned location of Mines (-9) 2307 | -10/Mines | Found a damaged Exp. Sensor Array with a note attached 2311 | -10/Mines | Found Prototype Device 2312 | -10/Mines | Identified Exp. Sensor Array 2395 | -10/Mines | Deemed a non-threat by the Exiles lab entrance 2395 | -10/Mines | Discovered new exit (range 5) 2486 | -10/Mines | Discovered exit to Materials (range 9) 2535 | -10/Mines | Received a Mining Laser from a helpful Derelict 2576 | -10/Mines | Discovered exit to Materials (range 7) 2625 | -10/Mines | Joined a pair of Derelicts in attacking an 0b10 outpost 2952 | -10/Mines | Discovered new exit (range 6) 3161 | -10/Mines | Entered Materials 3161 | -9/Materials | Accompanied by 2 allies 3161 | -9/Materials | Evolved 2 slots: Propulsion x1, Utility x1 3162 | -9/Materials | Identified exit to Mines 3163 | -9/Materials | Identified exit to Materials 3166 | -9/Materials | Led the pair of lost Derelicts to an unsafe place 3657 | -9/Materials | Repaired Imp. Light Cannon+ 3894 | -9/Materials | Discovered exit to Materials (range 16) 4348 | -9/Materials | Discovered exit to Materials (range 12) 4595 | -9/Materials | Entered Mines 4601 | -9/Mines | Discovered exit to Materials (range 8) 4616 | -9/Mines | Assisted by bots powering up and referring to "LRC-V3" 4621 | -9/Mines | Met a Derelict bent on vengeance 4699 | -9/Mines | Discovered exit to Materials (range 12) 5218 | -9/Mines | Murdered 3 allies 5340 | -9/Mines | Entered Materials 5340 | -8/Materials | Evolved 2 slots: Propulsion x1, Utility x1 5758 | -8/Materials | Build established: Scientist-Mutant 5839 | -8/Materials | Discovered new exit (range 15) 5885 | -8/Materials | Garrison activated, responded to threat 6121 | -8/Materials | Learned location of 1 exit from Extension 6163 | -8/Materials | Learned 8 Factory zone layouts 6197 | -8/Materials | Learned location of Extension (-4) 6236 | -8/Materials | Learned 2 Storage zone layouts 6240 | -8/Materials | Learned location of 1 exit from Storage 6241 | -8/Materials | Learned Factory security intel 6255 | -8/Materials | Identified exit to Factory 6255 | -8/Materials | Build established: Mutant 6318 | -8/Materials | Identified exit to Garrison 6319 | -8/Materials | Entered Garrison 6371 | -8/Garrison | Triggered checkpoint 6411 | -8/Garrison | Garrison Relay disabled 6622 | -8/Garrison | Discovered new exit (range 5) 6775 | -8/Garrison | Lost 5 parts (1p2n1u1w) 6787 | -8/Garrison | Destroyed 8 combat bots 7030 | -8/Garrison | Core integrity fell below 50% 7069 | -8/Garrison | Discovered new exit (range 13) 7125 | -8/Garrison | Garrison Relay disabled 7345 | -8/Garrison | Build established: Scavenger-Mutant 7865 | -8/Garrison | Triggered checkpoint 7951 | -8/Garrison | Garrison Relay disabled 8080 | -8/Garrison | Discovered new exit (range 12) 8155 | -8/Garrison | Triggered checkpoint 8218 | -8/Garrison | Garrison Relay disabled 8219 | -8/Garrison | Triggered checkpoint 8265 | -8/Garrison | Discovered new exit (range 12) 8265 | -8/Garrison | Discovered new exit (range 84) 8265 | -8/Garrison | Discovered new exit (range 65) 8265 | -8/Garrison | Discovered new exit (range 71) 8437 | -8/Garrison | Installed Relay Interface Framework 8755 | -8/Garrison | Expanded RIF knowledge: Program Shield 8811 | -8/Garrison | Entered Materials 8811 | -8/Materials | Accompanied by 4 allies 9211 | -8/Materials | First assault squad dispatched 9496 | -8/Materials | Crushed by falling debris 9496 | -8/Materials | Core integrity fell below 20% 9509 | -8/Materials | Lost 3 allies 9523 | -8/Materials | Build established: Bothacker-Mutant 9527 | -8/Materials | Lost 3 parts (2u1w) 9857 | -8/Materials | Identified exit to Garrison 9868 | -8/Materials | Entered Garrison 9868 | -8/Garrison | Accompanied by 2 allies 10002 | -8/Garrison | Triggered checkpoint 10032 | -8/Garrison | Garrison Relay disabled 10042 | -8/Garrison | Garrison Relay disabled 10280 | -8/Garrison | Expanded RIF knowledge: Alert ID Control 10283 | -8/Garrison | Lost 3 allies 10359 | -8/Garrison | Triggered checkpoint 10568 | -8/Garrison | Discovered exit to Factory (range 10) 10607 | -8/Garrison | Entered Factory 10607 | -7/Factory | Evolved 2 slots: Power x1, Utility x1 10608 | -7/Factory | Identified exit to Storage 10609 | -7/Factory | Identified exit to Factory 10683 | -7/Factory | Allied Derelicts emerged from ambush trap array 10838 | -7/Factory | Garrison activated, responded to threat 10912 | -7/Factory | Entered Storage 10913 | -7/Storage | Identified exit to Recycling 11204 | -7/Storage | Met a pair of Derelict thieves 11224 | -7/Storage | Used back door to open Recycling access 11230 | -7/Storage | Entered Recycling 11230 | -7/Recycling | Accompanied by 2 allies 11232 | -7/Recycling | Loaded intel: 5 recycling unit locations 11374 | -7/Recycling | Scanned before Scraplab entrance 11378 | -7/Recycling | Angered Scraplab inhabitants 11518 | -7/Recycling | Found Prototype Device 11518 | -7/Recycling | Identified Scrap Engine 12217 | -7/Recycling | Discovered new exit (range 15) 12557 | -7/Recycling | Build established: Construct 12933 | -7/Recycling | Identified exit to Factory 12978 | -7/Recycling | Entered Factory 12978 | -5/Factory | Accompanied by 1 ally 12978 | -5/Factory | Evolved 4 slots: Utility x3, Weapon x1 13064 | -5/Factory | Identified exit to Upper Caves 13088 | -5/Factory | Sucked down chute 13088 | -5/Factory | Entered Waste 13092 | -5/Waste | Spotted C-40 Crusher 13096 | -5/Waste | Spotted C-40 Crusher 13098 | -5/Waste | 1 allies followed down the chute 13103 | -5/Waste | EMP discharged 13113 | -5/Waste | Spotted C-40 Crusher 13129 | -5/Waste | Spotted C-40 Crusher 13129 | -5/Waste | Spotted C-40 Crusher 13137 | -5/Waste | Spotted C-40 Crusher 13142 | -5/Waste | Discovered new exit (range 16) 13170 | -5/Waste | Identified exit to Factory 13170 | -5/Waste | Entered Factory 13465 | -5/Factory | Fabricated B-60 Warrior? 13648 | -5/Factory | Fabricated Hvy. Gauss Cannon (x2) 13676 | -5/Factory | Discovered exit to Upper Caves (range 6) 13723 | -5/Factory | Identified exit to Garrison 13724 | -5/Factory | Entered Garrison 13782 | -5/Garrison | Triggered checkpoint 14208 | -5/Garrison | Found embedded Infiltrators 14229 | -5/Garrison | Garrison Relay disabled 14234 | -5/Garrison | Triggered checkpoint 14317 | -5/Garrison | Spotted B-75 Beast 14328 | -5/Garrison | Triggered checkpoint 14332 | -5/Garrison | Allies destroyed B-75 Beast 14450 | -5/Garrison | Garrison Relay disabled 14478 | -5/Garrison | Triggered checkpoint 14509 | -5/Garrison | Expanded RIF knowledge: Threat Obfuscation 14534 | -5/Garrison | Discovered new exit (range 3) 14817 | -5/Garrison | Build established: Botlord-Construct 14830 | -5/Garrison | Triggered checkpoint 14902 | -5/Garrison | Triggered checkpoint 14950 | -5/Garrison | Triggered checkpoint 15002 | -5/Garrison | Triggered checkpoint 15030 | -5/Garrison | Garrison Relay disabled 15038 | -5/Garrison | Expanded RIF knowledge: Threat Obfuscation 15089 | -5/Garrison | Discovered new exit (range 10) 15137 | -5/Garrison | Entered Factory 15137 | -4/Factory | Accompanied by 5 allies 15137 | -4/Factory | Evolved 2 slots: Propulsion x1, Utility x1 15325 | -4/Factory | Discovered new exit (range 20) 15366 | -4/Factory | Lost 3 allies 15387 | -4/Factory | First assault squad dispatched 15514 | -4/Factory | Lost 3 allies 15615 | -4/Factory | Identified exit to Upper Caves 15615 | -4/Factory | Identified exit to Extension 15766 | -4/Factory | Build established: Bothacker-Construct 15886 | -4/Factory | Entered Upper Caves 15888 | -4/Upper Caves | Learned Research garrison access intel 16221 | -4/Upper Caves | Encountered a Warlord checkpoint 16271 | -4/Upper Caves | Discovered new exit (range 9) 16281 | -4/Upper Caves | Identified exit to Upper Caves 16287 | -4/Upper Caves | Entered another Upper Caves area 16315 | -4/Upper Caves | Discovered new exit (range 11) 16838 | -4/Upper Caves | Lost 3 parts (1u2w) 16912 | -4/Upper Caves | Discovered new exit (range 12) 16921 | -4/Upper Caves | Identified exit to Zhirov 17050 | -4/Upper Caves | Core integrity fell below 50% 17054 | -4/Upper Caves | Entered Zhirov 17054 | -4/Zhirov | Discovered new exit (range 3) 17084 | -4/Zhirov | Lost 3 parts (1p1u1w) 17095 | -4/Zhirov | Met Zhirov 17169 | -4/Zhirov | Learned location of Command (-1) 17190 | -4/Zhirov | Zhirov requested help retrieving the SGEMP Prototype 17263 | -4/Zhirov | Found Alien Artifact 17263 | -4/Zhirov | Identified Integrated Dissipator 17263 | -4/Zhirov | Installed Integrated Dissipator, increased core heat dissipation (+20) 17303 | -4/Zhirov | Found Alien Artifact 17341 | -4/Zhirov | Build established: Mutant 17666 | -4/Zhirov | Identified exit to Proximity Caves 17672 | -4/Zhirov | Entered Proximity Caves 17733 | -3/Proximity Caves | Spotted B-86 Titan 17786 | -3/Proximity Caves | Discovered new exit (range 9) 17792 | -3/Proximity Caves | Identified exit to Research 17792 | -3/Proximity Caves | Entered Research 17792 | -3/Research | Evolved 2 slots: Propulsion x1, Utility x1 17793 | -3/Research | Loaded intel: 2 garrison access locations 17840 | -3/Research | Adv. Hacking Suite fried by hacking feedback 17953 | -3/Research | Found Mni. Smartbomb Launcher 17992 | -3/Research | Identified Transdimensional Reconstructor 17992 | -3/Research | Warped through subspace 18005 | -3/Research | Lost 3 parts (2u1w) 18031 | -3/Research | Spotted B-86 Titan 18071 | -3/Research | Identified exit to Garrison 18072 | -3/Research | Entered Garrison 18306 | -3/Garrison | Triggered checkpoint 18392 | -3/Garrison | Garrison Relay disabled 18448 | -3/Garrison | Spotted B-86 Titan 18695 | -3/Garrison | Build established: Bothacker-Mutant 18752 | -3/Garrison | Discovered new exit (range 13) 18842 | -3/Garrison | Lost 3 parts (1n2u) 18853 | -3/Garrison | Expanded RIF knowledge: Hotswap 18950 | -3/Garrison | Triggered checkpoint 18974 | -3/Garrison | Garrison Relay disabled 18976 | -3/Garrison | Garrison Relay disabled 19123 | -3/Garrison | Identified exit to Research 19146 | -3/Garrison | Entered Research 19146 | -2/Research | Accompanied by 2 allies 19146 | -2/Research | Evolved 2 slots: Propulsion x1, Utility x1 19424 | -2/Research | Lost 3 allies 19515 | -2/Research | System corruption reached 10% 19534 | -2/Research | Spotted B-90 Cyclops 19550 | -2/Research | Core integrity fell below 50% 19554 | -2/Research | Self-destructed Last Messages --------------- 19543_ Slug penetrates Wall. 19544_ Slammed into B-90 Cyclops. 19544_ Penetrated by Slug. 19546_ P-80 Master destroyed. 19546_ Penetrated by Slug. 19547_ Slammed into H-88 Terminator. 19547_ Med. Storage Unit destroyed. 19547_ Penetrated by Slug. 19547_ Critical hit (Destroy). 19547_ Arm. Scrap Engine destroyed. 19547_ Scrap Engine core remains intact and functional. 19550_ B-90 Cyclops activates siege mode. 19551_ Penetrated by Slug. 19551_ Scrap Engine destroyed. 19551_ Relay Coupler [Sentry] destroyed. 19552_ Adv. Energy Well destroyed. 19552_ Relay Coupler [Swarmer] destroyed. 19553_ Adv. Signal Interpreter destroyed. 19554_ Penetrated by Slug. Map ----- +----------------------------------------------------+ | ??????????????# # #?????????????????????? | | ??????????????# + #?????????????????????? | | ??????????????+ # #?????????????????????? | | ??????????????# # #?????????????????????? | | ??????????????# *** # #?????????????????????? | | ??????????? # ** # #?????????????????????? | | ?????????? # ** # #?????????????????????? | | ??????????" # # ##????????????????????? | | ??????""""" #####+##### T#????????????????????? | | ???????"""" ????# #???# #????????????????????? | | ??????? ????# #???# ##????????????????????? | | ???????? ????# #???#m #?????????????????????? | | ????????? #####+##### #?????????????????????? | | ?????????# # # #?????????????????????? | | ?????????# # # #?????????????????????? | | ?????????# # # #?????????????????????? | | ?????????# # """ # #?????????????????????? | | ?????????# # """ # #?????????????????????? | | ?????????# # """ !# #?????????????????????? | | ?????????+ / # #?????????????????????? | | ?????????# # # #?????????????????????? | | ?????????# ########### #?????????????????????? | | ?????????# #?! ## #?????????????????????? | | ?????????# #? ##BB#?#####???????????????? | | ?????????# # ##BB## ???????????????? | | ?????????# # ##@|;# ????????????????? | | ?????????# + """ ##hs## == ????#######?????? | | ?????????# # """ ##hp## ==?????# #?????? | | ?????????# # """ ?#%p## = ?????# #?????? | | ########## #? ?#= ## ??????# #?????? | | #? ## ## ??????# #?????? | | #??######## ##+######## #?????? | | #?????????# *=%# #?????? | | #?????????# ==/ #?????? | | ###############?????????##;;"""### [#*= #?????? | | ###########?????????????# ; % [ # #%= #?????? | | # #?????????????# ; =% + /[= #?????? | | # #?????????????# ; ##### #?????? | | # """ #?????????????##;! #???# #?????? | | # """" #??????????????## #???#######?????? | | + """" #???????????????# *#???????????????? | | # """ #???????????????########???????????????? | | # ! #??????????????????????????????????????? | | # #??????????????????????????????????????? | | ###########??????????????????????????????????????? | | ?????????????????????????????????????????????????? | | ?????????????????????????????????????????????????? | | ?????????????????????????????????????????????????? | | ?????????????????????????????????????????????????? | | ?????????????????????????????????????????????????? | +----------------------------------------------------+ Best States ------------- Heat Dissipation 104 Energy Generation 47 Energy Capacity 1849 Matter Stores 300 Matter Capacity 300 Sight Range 23 Robot Scan Range 20 Terrain Scan Density 10 Jamming Range 12 Additional Mass Support 9 Base Temperature (-) 200 Armor Coverage 225 Core Shielding 20 Evasion (%) 64 Targeting Accuracy 8 Armor Integrity Analysis 40 Recoil Reduction 4 Offensive Hacking 14 Relay Coupler Types 4 Relay Coupler Value 98 Item Schematics ----------------- Assault Drone Bay | -4/Zhirov | Free Exp. Heat Sink | -4/Zhirov | Free Exp. Optical Array | -4/Zhirov | Free Imp. Arc Thrower | -4/Zhirov | Free Robot Schematics ------------------ None Fabricated ------------ B-60 Warrior | x3 | -5/Factory | Preloaded Hvy. Gauss Cannon | x2 | -5/Factory | Preloaded Repaired ---------- Imp. Light Cannon | 10% | -9/Materials Studied --------- Arm. Wheel | -9/Materials | Hacked Rocket Launcher | -9/Materials | Hacked Imp. Light Cannon | -9/Materials | Hacked Imp. Ion Engine | -9/Materials | Hacked Wheel | -8/Materials | Hacked Lgt. Nuclear Core | -8/Materials | Hacked Deuterium Engine | -8/Materials | Hacked Alien Tech Used ----------------- Integrated Dissipator Transdimensional Reconstructor Achievements -------------- None Challenges ------------ None Game ------ Seed BattleStorageJets Manual? 0 Play Time 02:16:03 Cumulative 583.3 hours Start 2025.11.24 @ 21:29:35 End 2025.11.25 @ 09:57:36 Sessions 7 Manual Loads 0 Difficulty Rogue Special Mode None Game No. 915 Rogue 760 Adventurer 148 Explorer 7 Win Type - Total 28 Types 21/1/4/1/0/0/1/0/0/0 Lore% 81 Gallery% 84 Achievement% 72 Wizard Run 0 Options --------- Layout 1 ASCII 0 Keyboard 0 Movement Numpad Keybinds 0 Fullscreen 2 Font 24/Smallcaps Map View 50x40 Zoom Use 0% Tactical HUD 1 Map Filters NONE Filters NONE Steam 1 RUN: f5e1d92b-8d44-4041-9b87-af2d4cd7980e